bitfinex-derivatives/quotes_BTCF0:USTF0_20250929
["timestamp","ask_amount","ask_price","bid_price","bid_amount"]
[1759170786649,0.01782149,114050.0,114040.0,1.60833569]
[1759170786854,0.01782149,114050.0,114040.0,2.40921569]
[1759170787555,0.10544589,114050.0,114040.0,2.40921569]
[1759170788664,0.10544589,114050.0,114040.0,2.40917569]
[1759170789456,0.10544589,114050.0,114040.0,1.60833569]
[1759170789761,0.10544589,114050.0,114040.0,2.40917569]
[1759170790161,0.01782149,114050.0,114040.0,1.60833569]
[1759170790361,0.01782149,114050.0,114040.0,2.40917569]
[1759170791463,0.10544589,114050.0,114040.0,2.36194888]
[1759170792169,0.01782149,114050.0,114040.0,2.36194888]
[1759170792367,0.01782149,114050.0,114040.0,2.71092388]
[1759170792562,0.01782149,114050.0,114040.0,3.11092388]
[1759170793962,0.1006543,114070.0,114060.0,0.1045167]
[1759170794164,0.1379853,114070.0,114060.0,1.9640667]
[1759170794963,0.11829306,114070.0,114060.0,1.1632667]
[1759170795162,0.12329306,114070.0,114060.0,1.9640667]
[1759170795364,0.11829306,114070.0,114060.0,1.9640667]
[1759170795572,0.12129306,114070.0,114060.0,1.9640667]
[1759170796466,0.19045824,114070.0,114060.0,1.9640667]
[1759170797464,0.19045824,114070.0,114060.0,1.1632667]
[1759170797668,0.19045824,114070.0,114060.0,1.9640267]
[1759170797974,0.19045824,114070.0,114060.0,1.1632667]
[1759170798174,0.19045824,114070.0,114060.0,1.9640267]
[1759170798876,0.19045824,114070.0,114060.0,1.1632667]
[1759170799572,0.19045824,114070.0,114060.0,1.2660767]
[1759170799773,0.19045824,114070.0,114060.0,1.9640267]
[1759170802770,0.19045824,114070.0,114060.0,1.1632667]
[1759170802970,0.96066324,114070.0,114060.0,0.3608]
[1759170803368,0.96066324,114070.0,114060.0,0.709775]
[1759170803574,0.96066324,114070.0,114060.0,0.726675]
[1759170804566,0.96066324,114070.0,114060.0,0.3777]
[1759170804873,0.96066324,114070.0,114060.0,0.726675]
[1759170805070,0.96066324,114070.0,114060.0,0.3777]
[1759170805270,0.96066324,114070.0,114060.0,0.726675]
[1759170805474,0.61168824,114070.0,114060.0,0.726675]
[1759170805663,1.76134324,114070.0,114060.0,0.726675]
[1759170806875,1.76134324,114070.0,114060.0,0.3777]
[1759170807075,1.76134324,114070.0,114060.0,0.726675]
[1759170808475,0.96066324,114070.0,114060.0,0.726675]
[1759170808774,1.76134324,114070.0,114060.0,0.726675]
[1759170809274,1.79290125,114070.0,114060.0,0.726675]
[1759170809474,0.99222125,114070.0,114060.0,0.726675]
[1759170809775,1.79290125,114070.0,114060.0,0.726675]
[1759170809974,0.64324625,114070.0,114060.0,0.726675]
[1759170810178,1.79290125,114070.0,114060.0,0.726675]
[1759170810379,1.44392625,114070.0,114060.0,0.7263929]
[1759170810768,1.44392625,114070.0,114060.0,0.3777]
[1759170811471,0.64324625,114070.0,114060.0,0.3777]
[1759170811773,1.44388625,114070.0,114060.0,0.3777]
[1759170812574,0.69058052,114070.0,114060.0,0.3777]
[1759170812775,1.49122052,114070.0,114060.0,0.3777]
[1759170812977,1.49122052,114070.0,114060.0,0.7263929]
[1759170813879,1.49122052,114070.0,114060.0,0.3777]
[1759170814478,0.69058052,114070.0,114060.0,0.3777]
[1759170814688,1.49122052,114070.0,114060.0,0.3777]
[1759170815379,1.45966251,114070.0,114060.0,0.3777]
[1759170815779,1.80835541,114070.0,114060.0,0.3777]
[1759170816080,0.65902251,114070.0,114060.0,0.3777]
[1759170816276,1.80835541,114070.0,114060.0,0.3777]
[1759170816479,1.45966251,114070.0,114060.0,0.3777]
[1759170817479,1.45966251,114070.0,114060.0,0.7263929]
[1759170818585,1.45966251,114070.0,114060.0,0.3777]
[1759170819488,1.05966251,114070.0,114060.0,0.3777]
[1759170824380,1.05962251,114070.0,114060.0,0.4653165]
[1759170825389,1.04385198,114070.0,114060.0,0.4653165]
[1759170826491,1.04385198,114070.0,114060.0,0.8140094]
[1759170827188,1.04385198,114070.0,114060.0,0.7263929]
[1759170827387,1.04385198,114070.0,114060.0,0.8140094]
[1759170827582,0.24325198,114070.0,114060.0,0.8140094]
[1759170827989,1.02262198,114070.0,114060.0,0.84543714]
[1759170828284,0.22202198,114070.0,114060.0,0.84543714]
[1759170828489,0.19045824,114070.0,114060.0,0.84543714]
[1759170829284,0.10825306,114070.0,114060.0,1.59413004]
[1759170829492,0.10825306,114070.0,114060.0,1.64676685]
[1759170830290,0.02063876,114070.0,114060.0,2.41593911]
[1759170830679,0.02063876,114070.0,114060.0,2.77673911]
[1759170830883,0.02063876,114070.0,114060.0,1.97613911]
[1759170831190,0.02063876,114070.0,114060.0,2.77673911]
[1759170831391,0.02063876,114070.0,114060.0,1.97613911]
[1759170831592,0.02063876,114070.0,114060.0,2.77673911]
[1759170832390,0.02063876,114070.0,114060.0,1.97613911]
[1759170832690,0.02063876,114070.0,114060.0,2.77669911]
[1759170833585,0.003,114070.0,114060.0,2.77669911]
[1759170834891,0.003,114070.0,114060.0,1.97613911]
[1759170835089,0.003,114070.0,114060.0,2.77669911]
[1759170835490,0.003,114070.0,114060.0,2.7609321]
[1759170835689,0.003,114070.0,114060.0,2.83138594]
[1759170836191,0.003,114070.0,114060.0,2.03082594]
[1759170836393,0.003,114070.0,114060.0,2.83134594]
[1759170837195,0.003,114070.0,114060.0,2.03082594]
[1759170837391,0.003,114070.0,114060.0,2.83134594]
[1759170838796,0.17465483,114090.0,114080.0,0.0997012]
[1759170838994,0.17465483,114090.0,114080.0,0.8091941]
[1759170839293,0.19786483,114090.0,114080.0,0.8091941]
[1759170839492,0.17598548,114090.0,114080.0,1.6097141]
[1759170839689,0.19919548,114090.0,114080.0,1.6097141]
[1759170839888,0.21308548,114090.0,114080.0,1.6097141]
[1759170840093,0.22208548,114090.0,114080.0,1.6097141]
[1759170840289,0.22079483,114090.0,114080.0,1.6097141]
[1759170840495,0.22208548,114090.0,114080.0,1.6097141]
[1759170840690,0.22208548,114090.0,114080.0,1.2610212]
[1759170840891,0.11581184,114090.0,114080.0,1.6097141]
[1759170841093,0.10681184,114090.0,114080.0,1.6097141]
[1759170841494,0.12052075,114090.0,114080.0,1.6097141]
[1759170841691,0.12052075,114090.0,114080.0,1.61857379]
[1759170842284,0.12052075,114090.0,114080.0,0.81805379]
[1759170842488,0.12052075,114090.0,114080.0,1.61853379]
[1759170842686,0.12052075,114090.0,114080.0,0.8091941]
[1759170842687,0.15762075,114090.0,114080.0,0.8091941]
[1759170842996,0.15762075,114090.0,114080.0,1.6096741]
[1759170843593,0.15762075,114090.0,114080.0,0.8091941]
[1759170843798,0.15762075,114090.0,114080.0,1.2609812]
[1759170843999,0.15762075,114090.0,114080.0,1.6096741]
[1759170844596,0.15762075,114090.0,114080.0,1.6096341]
[1759170845397,0.15762075,114090.0,114080.0,0.8091941]
[1759170845597,0.15762075,114090.0,114080.0,1.6096341]
[1759170845798,0.12048075,114090.0,114080.0,1.6096341]
[1759170846104,0.12047565,114090.0,114080.0,1.6096341]
[1759170847993,0.14368565,114090.0,114080.0,0.8091941]
[1759170848197,0.15757565,114090.0,114080.0,1.6096341]
[1759170850402,0.12047565,114090.0,114080.0,1.6096341]
[1759170853407,0.15757565,114090.0,114080.0,1.6095941]
[1759170858713,0.12047655,114090.0,114080.0,1.6095941]
[1759170860117,0.13330655,114090.0,114080.0,1.6095941]
[1759170865611,0.13330655,114090.0,114080.0,1.6410539]
[1759170866215,0.15446655,114090.0,114080.0,1.6409739]
[1759170869412,0.15446655,114090.0,114080.0,0.88788071]
[1759170869618,0.15446655,114090.0,114080.0,1.68816071]
[1759170870020,0.15446655,114090.0,114080.0,0.8406539]
[1759170870320,0.15446655,114090.0,114080.0,1.6409339]
[1759170870520,0.15446655,114090.0,114080.0,0.8406539]
[1759170870714,0.55446655,114090.0,114080.0,0.0435598]
[1759170870916,0.90315945,114090.0,114080.0,0.8438398]
[1759170871215,0.55446655,114090.0,114080.0,0.8438398]
[1759170871415,0.55446655,114090.0,114080.0,0.0435598]
[1759170872218,0.90304469,114090.0,114080.0,0.39213794]
[1759170875120,0.90304469,114090.0,114080.0,0.0435598]
[1759170875420,0.90304469,114090.0,114080.0,0.0314598]
[1759170875624,0.1215921,114080.0,114070.0,0.39853794]
[1759170875823,0.47151529,114080.0,114070.0,0.39853794]
[1759170876221,0.47151529,114080.0,114070.0,0.75933794]
[1759170876420,0.47021024,114080.0,114070.0,0.75933794]
[1759170876724,0.1216321,114080.0,114070.0,0.84694774]
[1759170876922,0.13193715,114080.0,114070.0,0.84694774]
[1759170877619,0.13193715,114080.0,114070.0,0.4107598]
[1759170877922,0.13193715,114080.0,114070.0,0.75933794]
[1759170878114,0.1306321,114080.0,114070.0,0.4107598]
[1759170878320,0.13193735,114080.0,114070.0,0.75933794]
[1759170878520,0.12693735,114080.0,114070.0,0.75933794]
[1759170879522,0.12692361,114080.0,114070.0,0.75933794]
[1759170879819,0.1256321,114080.0,114070.0,0.75933794]
[1759170880026,0.12692361,114080.0,114070.0,0.84694774]
[1759170880920,0.12697242,114080.0,114070.0,0.84694774]
[1759170881828,0.12695564,114080.0,114070.0,0.84694774]
[1759170882026,0.12695564,114080.0,114070.0,0.84054774]
[1759170882413,0.1256321,114080.0,114070.0,0.84054774]
[1759170882619,0.12695564,114080.0,114070.0,0.84054774]
[1759170882925,0.1256321,114080.0,114070.0,0.84054774]
[1759170883225,0.12694635,114080.0,114070.0,0.84054774]
[1759170883826,0.12694635,114080.0,114070.0,0.4919696]
[1759170884125,0.12694635,114080.0,114070.0,0.84054774]
[1759170884926,0.47552449,114080.0,114070.0,0.84695774]
[1759170885126,0.49524646,114080.0,114070.0,0.72788814]
[1759170886933,0.14666832,114080.0,114070.0,0.81549794]
[1759170887231,0.49524646,114080.0,114070.0,0.81549794]
[1759170889828,0.49524646,114080.0,114070.0,0.4669198]
[1759170890030,0.49524646,114080.0,114070.0,0.81549794]
[1759170893034,0.49524646,114080.0,114070.0,0.4669198]
[1759170893230,0.49524646,114080.0,114070.0,0.81549794]
[1759170893632,0.49524646,114080.0,114070.0,0.72788814]
[1759170896034,0.49524646,114080.0,114070.0,0.81549794]
[1759170896230,0.49524646,114080.0,114070.0,0.36708814]
[1759170896430,0.49524646,114080.0,114070.0,0.01851]
[1759170896431,1.2046246,114080.0,114070.0,0.01851]
[1759170897336,0.50746832,114080.0,114070.0,0.01851]
[1759170897537,1.2046246,114080.0,114070.0,0.01851]
[1759170900834,1.2046246,114080.0,114070.0,0.00641]
[1759170901538,1.2046246,114080.0,114070.0,0.01851]
[1759170902142,1.2046246,114080.0,114070.0,0.00641]
[1759170902635,1.63618834,114080.0,114070.0,0.00641]
[1759170902835,0.1218375,114060.0,114050.0,1.60938244]
[1759170903040,0.49144212,114060.0,114050.0,0.80910244]
[1759170903230,0.84002026,114060.0,114050.0,0.3608]
[1759170903436,0.84002026,114060.0,114040.0,1.65669205]
[1759170903437,0.1218452,114050.0,114040.0,1.65669205]
[1759170903638,0.5076069,114050.0,114040.0,0.85633205]
[1759170903941,0.5076069,114050.0,114040.0,1.52179814]
[1759170904135,0.57783088,114050.0,114040.0,1.52179814]
[1759170904342,0.57483088,114050.0,114040.0,1.60943104]
[1759170904644,0.57483088,114050.0,114040.0,0.80911104]
[1759170906144,0.22625274,114050.0,114040.0,0.80911104]
[1759170906445,0.57483088,114050.0,114040.0,0.81411104]
[1759170906644,0.58372647,114050.0,114040.0,0.81411104]
[1759170908042,0.57483088,114050.0,114040.0,0.81411104]
[1759170908447,0.22625274,114050.0,114040.0,0.81411104]
[1759170908647,0.57483088,114050.0,114040.0,0.81411104]
[1759170908943,0.57483088,114050.0,114040.0,0.4655329]
[1759170909149,0.57483088,114050.0,114040.0,0.005]
[1759170909544,0.58360059,114050.0,114040.0,0.005]
[1759170910747,1.78396059,114050.0,114040.0,0.005]
[1759170911148,2.49333873,114050.0,114040.0,0.00141]
[1759170911345,0.1218682,114020.0,114010.0,0.3729]
[1759170911652,0.1218759,114010.0,114000.0,0.3608]
[1759170911846,0.83875415,114010.0,114000.0,0.3608]
[1759170912146,0.1218913,113990.0,113980.0,0.3729]
[1759170912452,1.30965127,113990.0,113980.0,0.80915714]
[1759170912641,1.3083083,113990.0,113980.0,0.80915714]
[1759170912949,1.3083883,113990.0,113980.0,0.80915714]
[1759170913151,0.94007606,113990.0,113980.0,0.80915714]
[1759170913647,1.2886542,113990.0,113980.0,0.80915714]
[1759170913849,1.2887342,113990.0,113980.0,0.80915714]
[1759170914150,0.4977742,113990.0,113980.0,0.3729]
[1759170914352,0.94047606,113990.0,113980.0,0.72147814]
[1759170914652,0.13819606,113990.0,113980.0,0.80915714]
[1759170914951,0.93951606,113990.0,113980.0,0.80915714]
[1759170915146,0.94451606,113990.0,113980.0,0.3729]
[1759170915346,0.4917742,113990.0,113980.0,0.3729]
[1759170915641,0.49311077,113990.0,113980.0,0.72147814]
[1759170916044,1.2934542,113990.0,113980.0,0.72147814]
[1759170916352,1.36462869,113990.0,113980.0,0.72147814]
[1759170916551,1.36462046,113990.0,113980.0,0.72147814]
[1759170916749,1.36329212,113990.0,113980.0,0.72147814]
[1759170916950,1.36462046,113990.0,113980.0,0.72147814]
[1759170918155,0.56161212,113990.0,113980.0,0.80915714]
[1759170918351,1.36329212,113990.0,113980.0,0.80915714]
[1759170919256,1.36461869,113990.0,113980.0,0.80915714]
[1759170919555,1.36465869,113990.0,113980.0,0.80915714]
[1759170920055,1.36465869,113990.0,113980.0,0.72147814]
[1759170920256,1.36464099,113990.0,113980.0,0.3729]
[1759170920452,1.36464099,113990.0,113980.0,0.72147814]
[1759170921357,1.36463702,113990.0,113980.0,0.72147814]
[1759170921554,0.21303398,113990.0,113980.0,0.80915714]
[1759170921855,1.36325212,113990.0,113980.0,0.80915714]
[1759170922055,1.36325212,113990.0,113980.0,0.72147814]
[1759170922253,1.36325212,113990.0,113980.0,0.3729]
[1759170922455,1.36455702,113990.0,113980.0,0.72147814]
[1759170922654,1.36451702,113990.0,113980.0,0.80915714]
[1759170923558,0.56291702,113990.0,113980.0,0.80915714]
[1759170923758,1.36442056,113990.0,113980.0,0.80915714]
[1759170923956,1.36442056,113990.0,113980.0,0.72147814]
[1759170924556,1.36309212,113990.0,113980.0,0.72147814]
[1759170924858,0.56161212,113990.0,113980.0,0.72147814]
[1759170925057,1.36466056,113990.0,113980.0,0.72147814]
[1759170925358,1.36333212,113990.0,113980.0,0.72147814]
[1759170925559,1.36463585,113990.0,113980.0,0.72147814]
[1759170925853,1.36463585,113990.0,113980.0,0.3608]
[1759170926057,0.123419,113980.0,113970.0,0.36090821]
[1759170926260,0.47199714,113980.0,113970.0,0.36090821]
[1759170926557,0.82057528,113980.0,113970.0,0.36090821]
[1759170927260,0.82557528,113980.0,113970.0,0.36090821]
[1759170927455,0.47699714,113980.0,113970.0,0.36090821]
[1759170927652,0.82557528,113980.0,113970.0,0.36090821]
[1759170928054,0.128419,113980.0,113970.0,0.36090821]
[1759170928259,0.82557528,113980.0,113970.0,0.36090821]
[1759170929052,1.27707714,113980.0,113970.0,0.80927305]
[1759170930158,1.27723714,113980.0,113970.0,0.80927305]
[1759170930559,0.47499714,113980.0,113970.0,0.80927305]
[1759170930862,1.27711714,113980.0,113970.0,0.80927305]
[1759170931563,0.47499714,113980.0,113970.0,0.80927305]
[1759170931861,1.27703714,113980.0,113970.0,0.80927305]
[1759170932057,0.47499714,113980.0,113970.0,0.80927305]
[1759170932256,0.928619,113980.0,113970.0,0.46069491]
[1759170932861,0.126419,113980.0,113970.0,0.46069491]
[1759170933061,0.928579,113980.0,113970.0,0.46069491]
[1759170933557,0.928579,113980.0,113970.0,0.80993013]
[1759170933957,0.928619,113980.0,113970.0,0.80993013]
[1759170934763,0.03874,113980.0,113970.0,0.80993013]
[1759170934961,0.84122,113980.0,113970.0,1.15916535]
[1759170935260,0.84122,113980.0,113970.0,0.80993013]
[1759170935865,0.928899,113980.0,113970.0,0.80993013]
[1759170936464,0.84122,113980.0,113970.0,0.80993013]
[1759170936659,0.03874,113980.0,113970.0,0.80993013]
[1759170936868,0.84102,113980.0,113970.0,0.80993013]
[1759170937861,0.84126,113980.0,113970.0,1.15916535]
[1759170938164,0.03874,113980.0,113970.0,1.15916535]
[1759170938363,0.003,113980.0,113970.0,1.56672535]
[1759170939666,0.003,113980.0,113970.0,1.96916535]
[1759170939860,0.003,113980.0,113970.0,1.16672535]
[1759170940062,0.01692,113980.0,113970.0,1.96152535]
[1759170940868,0.104599,113980.0,113970.0,1.15916535]
[1759170941162,0.14614186,113980.0,113970.0,1.26313491]
[1759170941367,0.14614186,113980.0,113970.0,1.61237013]
[1759170941568,0.14614186,113980.0,113970.0,1.20993013]
[1759170941868,0.14614186,113980.0,113970.0,0.46069491]
[1759170942068,0.14614186,113980.0,113970.0,0.80993013]
[1759170942370,0.86122286,113980.0,113970.0,0.80993013]
[1759170942562,0.05846286,113980.0,113970.0,0.80993013]
[1759170942866,0.05846286,113980.0,113970.0,1.15916535]
[1759170943467,0.05846286,113980.0,113970.0,0.80993013]
[1759170943869,0.14614186,113980.0,113970.0,0.46069491]
[1759170944069,0.14614186,113980.0,113970.0,0.80993013]
[1759170944571,0.05846286,113980.0,113970.0,0.80993013]
[1759170945872,0.05846286,113980.0,113970.0,1.15916535]
[1759170945873,0.02272286,113980.0,113970.0,1.15916535]
[1759170946669,0.02272286,113980.0,113970.0,1.55916535]
[1759170947174,0.01860849,113990.0,113980.0,0.087679]
[1759170947469,0.01860849,113990.0,113980.0,2.04914103]
[1759170947766,0.01730476,113990.0,113980.0,2.04914103]
[1759170947973,0.00129517,114000.0,113990.0,0.0876699]
[1759170948167,0.01398573,114010.0,114000.0,0.0876636]
[1759170948363,0.00131573,114010.0,114000.0,1.98269134]
[1759170948568,0.00131573,114010.0,114000.0,2.38265134]
[1759170948870,0.46833716,114020.0,114010.0,0.0876559]
[1759170949065,0.46833716,114020.0,114010.0,0.79769112]
[1759170949873,0.14213716,114020.0,114010.0,0.79769112]
[1759170950671,0.2137865,114020.0,114010.0,0.79769112]
[1759170951177,0.2397865,114020.0,114010.0,0.79769112]
[1759170951470,0.2137865,114020.0,114010.0,0.79769112]
[1759170951662,0.2267865,114020.0,114010.0,0.79769112]
[1759170959678,0.2267865,114020.0,114010.0,0.4484559]
[1759170959879,0.2267865,114020.0,114010.0,0.79769112]
[1759170963179,0.24286388,114020.0,114010.0,0.79769112]
[1759170967990,0.24286388,114020.0,114010.0,0.71003522]
[1759170968390,0.24286388,114020.0,114010.0,0.79769112]
[1759170970794,0.24286388,114020.0,114010.0,0.4484559]
[1759170971091,0.24286388,114020.0,114010.0,0.79769112]
[1759170972188,0.24286388,114020.0,114010.0,0.71003522]
[1759170972792,0.24286388,114020.0,114010.0,0.79769112]
[1759170975399,0.24286388,114020.0,114010.0,0.71003522]
[1759170975593,0.24286388,114020.0,114010.0,0.79769112]
[1759170978098,0.2743238,114020.0,114010.0,0.82920842]
[1759170978592,0.2743238,114020.0,114010.0,0.3923173]
[1759170978800,0.2743238,114020.0,114010.0,0.74155252]
[1759170979998,0.2743238,114020.0,114010.0,0.82920842]
[1759170986700,0.24286388,114020.0,114010.0,0.82920842]
[1759170987292,0.24286388,114020.0,114010.0,0.74155252]
[1759170987687,0.24286388,114020.0,114010.0,0.3923173]
[1759170987896,0.24286388,114020.0,114010.0,0.74155252]
[1759170988999,0.24286388,114020.0,114010.0,0.4799732]
[1759170989200,0.24286388,114020.0,114010.0,0.82920842]
[1759170992306,0.24286388,114020.0,114010.0,0.82892717]
[1759170995511,0.2743238,114020.0,114010.0,0.79740987]
[1759170996205,0.25998117,114020.0,114010.0,0.79740987]
[1759170996512,0.28231468,114020.0,114010.0,0.79740987]
[1759170996811,0.28227249,114020.0,114010.0,0.79740987]
[1759170997910,0.28228781,114020.0,114010.0,0.79740987]
[1759170998409,0.28228781,114020.0,114010.0,0.4484559]
[1759170998613,0.28228781,114020.0,114010.0,0.79740987]
[1759170999912,0.28231656,114020.0,114010.0,0.79740987]
[1759171000212,0.28098117,114020.0,114010.0,0.79740987]
[1759171000414,0.28231656,114020.0,114010.0,0.79740987]
[1759171000812,0.21066327,114020.0,114010.0,0.79740987]
[1759171002007,0.21065515,114020.0,114010.0,0.79740987]
[1759171002813,0.20933183,114020.0,114010.0,0.79740987]
[1759171003110,0.21065515,114020.0,114010.0,0.79740987]
[1759171003311,0.20933183,114020.0,114010.0,0.79740987]
[1759171003718,0.21062828,114020.0,114010.0,0.79740987]
[1759171004117,0.21064908,114020.0,114010.0,0.79740987]
[1759171004320,0.20933183,114020.0,114010.0,0.79740987]
[1759171005612,0.17918916,114020.0,114010.0,0.82892717]
[1759171005812,0.17787191,114020.0,114010.0,0.82892717]
[1759171006218,0.17917423,114020.0,114010.0,0.82892717]
[1759171007120,0.17920252,114020.0,114010.0,0.82892717]
[1759171008818,0.17787191,114020.0,114010.0,0.82892717]
[1759171009223,0.17918041,114020.0,114010.0,0.82892717]
[1759171009422,0.17918041,114020.0,114010.0,0.82887138]
[1759171009621,0.05230588,114020.0,114010.0,1.17782535]
[1759171009817,0.03838588,114020.0,114010.0,1.59353486]
[1759171010119,0.03707738,114020.0,114010.0,2.39605486]
[1759171010520,0.03707738,114020.0,114010.0,1.59353486]
[1759171010717,0.03707738,114020.0,114010.0,2.39605486]
[1759171011023,0.02907738,114020.0,114010.0,2.39605486]
[1759171011223,0.04650764,114020.0,114010.0,2.39605486]
[1759171011424,0.04650764,114020.0,114010.0,2.39597486]
[1759171011626,0.03450764,114020.0,114010.0,2.39597486]
[1759171012125,0.12215584,114020.0,114010.0,2.39589486]
[1759171012319,0.12215584,114020.0,114010.0,2.39581486]
[1759171012625,0.12115584,114020.0,114010.0,2.39581486]
[1759171012825,0.12415584,114020.0,114010.0,2.39581486]
[1759171013723,0.12415584,114020.0,114010.0,1.59353486]
[1759171014023,0.12415584,114020.0,114010.0,2.39581486]
[1759171014228,0.12415584,114020.0,114010.0,2.42736242]
[1759171014416,0.12415584,114020.0,114010.0,1.62508242]
[1759171014616,0.12415584,114020.0,114010.0,2.42720242]
[1759171015326,0.12415584,114020.0,114010.0,1.62508242]
[1759171015523,0.12415584,114020.0,114010.0,2.42704242]
[1759171016125,0.13740584,114020.0,114010.0,1.72917448]
[1759171016326,0.13740584,114020.0,114010.0,2.42708242]
[1759171018827,0.03650764,114020.0,114010.0,2.42708242]
[1759171019523,0.12415584,114020.0,114010.0,2.42708242]
[1759171019727,0.03650764,114020.0,114010.0,2.42708242]
[1759171022423,0.03650764,114020.0,114010.0,2.42716242]
[1759171023330,0.13740584,114020.0,114010.0,2.42716242]
[1759171023529,0.13740584,114020.0,114010.0,1.62508242]
[1759171023726,0.13740584,114020.0,114010.0,2.42708242]
[1759171025735,0.12415584,114020.0,114010.0,2.42708242]
[1759171026832,0.13740584,114020.0,114010.0,2.42708242]
[1759171027836,0.13740584,114020.0,114010.0,2.39553486]
[1759171029235,0.16067584,114020.0,114010.0,2.39525486]
[1759171032439,0.16067584,114020.0,114010.0,1.59353486]
[1759171032630,0.16067584,114020.0,114010.0,2.39505486]
[1759171033834,0.16067584,114020.0,114010.0,1.59353486]
[1759171034137,0.16067584,114020.0,114010.0,2.39485486]
[1759171034538,0.16067584,114020.0,114010.0,1.59353486]
[1759171034734,0.13740584,114020.0,114010.0,2.39485486]
[1759171039340,0.13740584,114020.0,114010.0,1.59353486]
[1759171039542,0.13740584,114020.0,114010.0,2.39485486]
[1759171041244,0.13740584,114020.0,114010.0,1.59353486]
[1759171041446,0.13740584,114020.0,114010.0,2.39485486]
[1759171042747,0.01907738,114020.0,114010.0,2.34762805]
[1759171043043,0.01907738,114020.0,114010.0,2.41031666]
[1759171045643,0.01907738,114020.0,114010.0,2.39496264]
[1759171048650,0.01907738,114020.0,114010.0,1.59364264]
[1759171048852,0.01907738,114020.0,114010.0,2.39492264]
[1759171051253,0.01907738,114020.0,114010.0,1.59364264]
[1759171051453,0.01907738,114020.0,114010.0,2.39492264]
[1759171052348,0.01907738,114020.0,114010.0,2.04586918]
[1759171055561,0.01907738,114020.0,114010.0,1.99853459]
[1759171056355,0.01907738,114020.0,114010.0,1.59853459]
[1759171056561,0.01907738,114020.0,114010.0,1.94738907]
[1759171056759,0.01907738,114020.0,114010.0,1.6612232]
[1759171057062,0.01907738,114020.0,114010.0,2.01007768]
[1759171057464,0.0175368,114030.0,114020.0,0.0876482]
[1759171057665,0.0175368,114030.0,114020.0,1.20884577]
[1759171058260,0.0175368,114030.0,114020.0,1.14615716]
[1759171058562,0.0175368,114030.0,114020.0,1.20884577]
[1759171059066,0.0195368,114030.0,114020.0,1.20884577]
[1759171059268,0.0195368,114030.0,114020.0,1.14615716]
[1759171060065,0.0175368,114030.0,114020.0,1.14615716]
[1759171060264,0.0235368,114030.0,114020.0,1.14615716]
[1759171060665,0.0235368,114030.0,114020.0,1.94735716]
[1759171062968,0.1009778,114050.0,114020.0,2.34735716]
[1759171063271,0.10234466,114050.0,114040.0,0.79728728]
[1759171063570,0.10234466,114050.0,114040.0,1.62999859]
[1759171064169,0.11960134,114050.0,114040.0,1.62999859]
[1759171064366,0.12560134,114050.0,114040.0,1.62999859]
[1759171065068,0.11960134,114050.0,114040.0,1.62999859]
[1759171065270,0.12660134,114050.0,114040.0,1.62999859]
[1759171065667,0.12660134,114050.0,114040.0,1.59848728]
[1759171065868,0.12060134,114050.0,114040.0,1.59848728]
[1759171066772,0.12060134,114050.0,114040.0,1.60718917]
[1759171067574,0.14197134,114050.0,114040.0,0.79728728]
[1759171067774,0.14197134,114050.0,114040.0,1.59844728]
[1759171071175,0.14197134,114050.0,114040.0,0.79728728]
[1759171071475,0.14197134,114050.0,114040.0,1.59840728]
[1759171074379,0.14197134,114050.0,114040.0,1.95920728]
[1759171076281,0.14197134,114050.0,114040.0,1.95916728]
[1759171077084,0.14197134,114050.0,114040.0,1.15808728]
[1759171077284,0.14197134,114050.0,114040.0,1.95916728]
[1759171077577,0.14197134,114050.0,114040.0,1.6103128]
[1759171077883,0.14197134,114050.0,114040.0,1.87149448]
[1759171078085,0.14197134,114050.0,114040.0,1.6102728]
[1759171078285,0.14197134,114050.0,114040.0,1.95912728]
[1759171080483,0.14197134,114050.0,114040.0,1.15808728]
[1759171080689,0.14197134,114050.0,114040.0,1.95912728]
[1759171081683,0.05434354,114050.0,114040.0,1.95912728]
[1759171081885,0.14196874,114050.0,114040.0,1.95912728]
[1759171082284,0.01435,114050.0,114040.0,2.46088751]
[1759171082583,0.01435,114050.0,114040.0,2.47664317]
[1759171082893,0.01870471,114050.0,114040.0,2.47664317]
[1759171083489,0.01870471,114050.0,114040.0,2.47660317]
[1759171084888,0.01870471,114050.0,114040.0,1.67560317]
[1759171085190,0.01870471,114050.0,114040.0,2.47660317]
[1759171085789,0.01870471,114050.0,114040.0,2.46080681]
[1759171086693,0.11907991,114050.0,114040.0,2.46080681]
[1759171086893,0.11907991,114050.0,114040.0,1.65984681]
[1759171087098,0.11907991,114050.0,114040.0,2.46080681]
[1759171087395,0.03145471,114050.0,114040.0,2.46080681]
[1759171087993,0.11907981,114050.0,114040.0,2.46080681]
[1759171088496,0.03145471,114050.0,114040.0,2.46080681]
[1759171088794,0.03145471,114050.0,114040.0,2.46076681]
[1759171091696,0.03145471,114050.0,114040.0,1.65984681]
[1759171091895,0.03145471,114050.0,114040.0,2.46072681]
[1759171092992,0.03145471,114050.0,114040.0,1.65984681]
[1759171093197,0.03145471,114050.0,114040.0,2.46068681]
[1759171093596,0.11907991,114050.0,114040.0,2.46068681]
[1759171094497,0.03145471,114050.0,114040.0,2.46068681]
[1759171094896,0.11907991,114050.0,114040.0,2.46068681]
[1759171095385,0.11907991,114050.0,114040.0,1.65984681]
[1759171095590,0.11907991,114050.0,114040.0,2.47644317]
[1759171096985,0.11907991,114050.0,114040.0,1.67560317]
[1759171097202,0.11907991,114050.0,114040.0,2.47640317]
[1759171098101,0.11907991,114050.0,114040.0,1.67560317]
[1759171098604,0.11907991,114050.0,114040.0,2.47640317]
[1759171099291,0.11907991,114050.0,114040.0,2.47636317]
[1759171099994,0.11907991,114050.0,114040.0,1.67560317]
[1759171100192,0.11907991,114050.0,114040.0,1.15808728]
[1759171100489,0.11907991,114050.0,114040.0,1.95884728]
[1759171101197,0.11907991,114050.0,114040.0,2.03763191]
[1759171103293,0.51907991,114050.0,114040.0,1.94999911]
[1759171103497,0.54237991,114050.0,114040.0,0.88801743]
[1759171103697,0.54237991,114050.0,114040.0,2.03759191]
[1759171103999,0.54237991,114050.0,114040.0,1.14923911]
[1759171104197,0.54237991,114050.0,114040.0,1.19303766]
[1759171105096,0.54237991,114050.0,114040.0,1.28067046]
[1759171105295,0.45475471,114050.0,114040.0,1.28067046]
[1759171106694,0.45475471,114050.0,114040.0,1.62952494]
[1759171106895,0.54237991,114050.0,114040.0,1.62952494]
[1759171108413,0.45475471,114050.0,114040.0,1.62952494]
[1759171108908,0.54237981,114050.0,114040.0,1.62952494]
[1759171109107,0.54237981,114050.0,114040.0,1.64147046]
[1759171109307,0.54237981,114050.0,114040.0,1.99032494]
[1759171114312,0.54237981,114050.0,114040.0,2.339005]
[1759171115214,0.5511826,114050.0,114040.0,2.339005]
[1759171115512,0.89994987,114050.0,114040.0,1.99023773]
[1759171115707,0.89994987,114050.0,114040.0,2.339005]
[1759171116612,0.89994987,114050.0,114040.0,2.30748734]
[1759171117815,0.89994987,114050.0,114040.0,1.87108727]
[1759171118509,0.89994987,114050.0,114040.0,1.95872007]
[1759171119006,0.89994987,114050.0,114040.0,1.87108727]